Workbook

Sheet main
Q1: المطلوب ترحيل البيانات بصفحه جديده :
Q2: عند ادخال البيانات على الاوزان والاعداد يقوم بعمل نسخ هذه البيانات الى صفحه جديده مع الاحتفاظ بالبيانات اسماء الخلايا المطلوب نسخها صفوف كل سطر على حده | R2: -1
Q3: عند ادخال اي رقم على الخلايا نقوم بالضغط على كبسه ترحيل البيانات ويقوم بفتح صفحه جديده على ان لاتتكرر الصفحه مرة اخرى اي تم ترحيل هذه العمليه عند اضغط عليها مره ثانيه | R3: -2
Q4: الاساسيات لترحيل البيانات الثابته اي لايكن تغييرها باللون الأحمر وضعها صفحه جديده وهي كالتالي | R4: -3
Q5: اول خليه لترحيل الكود NO باللون الأصفر + الصافي باللون الاأصفر + 0.9 و 1.34 1.5 + UNIT PRICE باللون الاصفر + TOTAL | R5: 4
AA9: فراغ | AK9: فراغ | AL9: فراغ | AN9: فراغ
A10: EXAMPLE | Z10: ITEM NUMBER | AA10: ITEM DESC | AB10: QUANTITY | AC10: UNIT PRICE | AD10: TOTAL | AE10: WHSE | AF10: ACOUNT CODE | AG10: BUSINESSC UNIT | AH10: DEPARTMENT | AI10: WORK CENTER | AJ10: FLOCK | AK10: عدد الطبالي | AL10: وزن الطبيلة | AM10: عدد 0.9 | AO10: عدد 1.34
A11: كيس حمودة | E11: FRR00002 | G11: الضليل | K11: FRR00007 | M11: مطاعم 1100 | Q11: FRR00013 | S11: مطاعم 1200 | W11: FRR00014
A12: 1.5 | B12: 1.34 | C12: 0.9 | D12: الوزن | E12: الصافي | G12: 1.5 | H12: 1.34 | I12: 0.9 | J12: الوزن | K12: الصافي | M12: 1.5 | N12: 1.34 | O12: 0.9 | P12: الوزن | Q12: الصافي | S12: 1.5 | T12: 1.34 | U12: 0.9 | V12: الوزن | W12: الصافي | Z12: FRR00002 | AC12: 1.2825 | AD12: =AB12*AC12 -> 0 | AE12: DAT010 | AF12: 1141000022 | AG12: JP-PROD. | AH12: JP-WIPDP | AI12: JP-WIPWC | AJ12: Flock_4
A13: 12 | B13: 20 | C13: 5 | D13: 500 | E13: =D13-(C13*$C$12+B13*$B$12+A13*$A$12) -> 450.7 | F13: =E13/(A13+B13+C13) -> 12.18108108 | K13: =J13-(I13*$I$12+H13*$H$12+G13*$G$12) -> 0 | L13: =K13/(G13+H13+I13) ->  | Q13: =P13-(O13*$O$12+N13*$N$12+M13*$M$12) -> 0 | R13: =Q13/(M13+N13+O13) ->  | X13: =W13/(S13+T13+U13) ->  | Z13: FRR00007 | AC13: 1.2825 | AD13: =AB13*AC13 -> 0 | AE13: DAT010 | AF13: 1141000022 | AG13: JP-PROD. | AH13: JP-WIPDP | AI13: JP-WIPWC | AJ13: Flock_4
A14: 25 | B14: 10 | C14: 8 | D14: 600 | E14: =D14-(C14*$C$12+B14*$B$12+A14*$A$12) -> 541.9 | F14: =E14/(A14+B14+C14) -> 12.60232558 | K14: =J14-(I14*$I$12+H14*$H$12+G14*$G$12) -> 0 | L14: =K14/(G14+H14+I14) ->  | Q14: =P14-(O14*$O$12+N14*$N$12+M14*$M$12) -> 0 | R14: =Q14/(M14+N14+O14) ->  | W14: =V14-(U14*$U$12+T14*$T$12+S14*$S$12) -> 0 | X14: =W14/(S14+T14+U14) ->  | Z14: FRR00013 | AC14: 1.2825 | AD14: 0 | AE14: DAT010 | AF14: 1141000022 | AG14: JP-PROD. | AH14: JP-WIPDP | AI14: JP-WIPWC | AJ14: Flock_4
E15: 0 | K15: 0 | Q15: 0 | W15: 0 | Z15: FRR00014 | AC15: 1.2825 | AD15: 0 | AE15: DAT010 | AF15: 1141000022 | AG15: JP-PROD. | AH15: JP-WIPDP | AI15: JP-WIPWC | AJ15: Flock_4
E16: 0 | K16: 0 | Q16: 0 | W16: 0 | Z16: FRR00015 | AC16: 1.2825 | AD16: 0 | AE16: DAT010 | AF16: 1141000022 | AG16: JP-PROD. | AH16: JP-WIPDP | AI16: JP-WIPWC | AJ16: Flock_4
E17: 0 | K17: 0 | Q17: 0 | W17: 0 | Z17: FRR00016 | AC17: 1.2825 | AD17: 0 | AE17: DAT010 | AF17: 1141000022 | AG17: JP-PROD. | AH17: JP-WIPDP | AI17: JP-WIPWC | AJ17: Flock_4
E18: 0 | K18: 0 | Q18: 0 | W18: 0 | Z18: FRR00017 | AC18: 1.2825 | AD18: 0 | AE18: DAT010 | AF18: 1141000022 | AG18: JP-PROD. | AH18: JP-WIPDP | AI18: JP-WIPWC | AJ18: Flock_4
E19: 0 | K19: 0 | Q19: 0 | W19: 0 | Z19: FRR00008 | AC19: 1.2825 | AD19: 0 | AE19: DAT010 | AF19: 1141000022 | AG19: JP-PROD. | AH19: JP-WIPDP | AI19: JP-WIPWC | AJ19: Flock_4
E20: 0 | K20: 0 | Q20: 0 | W20: 0 | Z20: FRR00043 | AC20: 1.2825 | AD20: 0 | AE20: DAT010 | AF20: 1141000022 | AG20: JP-PROD. | AH20: JP-WIPDP | AI20: JP-WIPWC | AJ20: Flock_4
E21: 0 | K21: 0 | Q21: 0 | W21: 0 | Z21: FRR00006 | AC21: 1.2925 | AD21: 0 | AE21: DAT010 | AF21: 1141000022 | AG21: JP-PROD. | AH21: JP-WIPDP | AI21: JP-WIPWC | AJ21: Flock_4
E22: 0 | K22: 0 | Q22: 0 | W22: 0 | Z22: FRR00044 | AC22: 1.2925 | AD22: 0 | AE22: DAT010 | AF22: 1141000022 | AG22: JP-PROD. | AH22: JP-WIPDP | AI22: JP-WIPWC | AJ22: Flock_4
E23: 0 | K23: 0 | Q23: 0 | W23: 0 | Z23: FRR00011 | AC23: 1.2825 | AD23: 0 | AE23: DAT010 | AF23: 1141000022 | AG23: JP-PROD. | AH23: JP-WIPDP | AI23: JP-WIPWC | AJ23: Flock_4
E24: 0 | K24: 0 | Q24: 0 | W24: 0 | Z24: FRR00078 | AC24: 1.2825 | AD24: 0 | AE24: DAT010 | AF24: 1141000022 | AG24: JP-PROD. | AH24: JP-WIPDP | AI24: JP-WIPWC | AJ24: Flock_4
E25: 0 | K25: 0 | Q25: 0 | W25: 0 | Z25: FRR00010 | AC25: 1.3425 | AD25: 0 | AE25: DAT010 | AF25: 1141000022 | AG25: JP-PROD. | AH25: JP-WIPDP | AI25: JP-WIPWC | AJ25: Flock_4
E26: 0 | K26: 0 | Q26: 0 | W26: 0 | Z26: FRR00060 | AC26: 1.2825 | AD26: 0 | AE26: DAT010 | AF26: 1141000022 | AG26: JP-PROD. | AH26: JP-WIPDP | AI26: JP-WIPWC | AJ26: Flock_4
E27: 0 | K27: 0 | Q27: 0 | W27: 0 | Z27: FRR00063 | AC27: 1.2825 | AD27: 0 | AE27: DAT010 | AF27: 1141000022 | AG27: JP-PROD. | AH27: JP-WIPDP | AI27: JP-WIPWC | AJ27: Flock_4
E28: 0 | K28: 0 | Q28: 0 | W28: 0 | Z28: FRR00012 | AC28: 1.2825 | AD28: 0 | AE28: DAT010 | AF28: 1141000022 | AG28: JP-PROD. | AH28: JP-WIPDP | AI28: JP-WIPWC | AJ28: Flock_4
E29: 0 | K29: 0 | Q29: 0 | W29: 0 | Z29: FRR00046 | AC29: 1.2925 | AD29: 0 | AE29: DAT010 | AF29: 1141000022 | AG29: JP-PROD. | AH29: JP-WIPDP | AI29: JP-WIPWC | AJ29: Flock_4
E30: 0 | K30: 0 | Q30: 0 | W30: 0 | Z30: FRR00048 | AC30: 1.3025 | AD30: 0 | AE30: DAT010 | AF30: 1141000022 | AG30: JP-PROD. | AH30: JP-WIPDP | AI30: JP-WIPWC | AJ30: Flock_4
E31: 0 | K31: 0 | Q31: 0 | W31: 0 | Z31: FRR00067 | AC31: 1.4125 | AD31: 0 | AE31: DAT010 | AF31: 1141000022 | AG31: JP-PROD. | AH31: JP-WIPDP | AI31: JP-WIPWC | AJ31: Flock_4
E32: 0 | K32: 0 | Q32: 0 | W32: 0 | Z32: FRR00056 | AC32: 1.2925 | AD32: 0 | AE32: DAT010 | AF32: 1141000022 | AG32: JP-PROD. | AH32: JP-WIPDP | AI32: JP-WIPWC | AJ32: Flock_4
E33: 0 | K33: 0 | Q33: 0 | W33: 0 | Z33: FRR00049 | AC33: 1.2925 | AD33: 0 | AE33: DAT010 | AF33: 1141000022 | AG33: JP-PROD. | AH33: JP-WIPDP | AI33: JP-WIPWC | AJ33: Flock_4
E34: 0 | K34: 0 | Q34: 0 | W34: 0 | Z34: FRR00029 | AC34: 1.4325 | AD34: 0 | AE34: DAT010 | AF34: 1141000022 | AG34: JP-PROD. | AH34: JP-WIPDP | AI34: JP-WIPWC | AJ34: Flock_4
E35: 0 | K35: 0 | Q35: 0 | W35: 0 | Z35: FRR00022 | AC35: 1.4325 | AD35: 0 | AE35: DAT010 | AF35: 1141000022 | AG35: JP-PROD. | AH35: JP-WIPDP | AI35: JP-WIPWC | AJ35: Flock_4
E36: 0 | K36: 0 | Q36: 0 | W36: 0 | Z36: FRR00041 | AC36: 1.3625 | AD36: 0 | AE36: DAT010 | AF36: 1141000022 | AG36: JP-PROD. | AH36: JP-WIPDP | AI36: JP-WIPWC | AJ36: Flock_4
E37: 0 | K37: 0 | Q37: 0 | W37: 0 | Z37: FRR00024 | AC37: 1.4325 | AD37: 0 | AE37: DAT010 | AF37: 1141000022 | AG37: JP-PROD. | AH37: JP-WIPDP | AI37: JP-WIPWC | AJ37: Flock_4
E38: 0 | K38: 0 | Q38: 0 | W38: 0 | Z38: FRR00030 | AC38: 1.4325 | AD38: 0 | AE38: DAT010 | AF38: 1141000022 | AG38: JP-PROD. | AH38: JP-WIPDP | AI38: JP-WIPWC | AJ38: Flock_4
E39: 0 | K39: 0 | Q39: 0 | W39: 0 | Z39: FRR00038 | AC39: 1.8225 | AD39: 0 | AE39: DAT010 | AF39: 1141000022 | AG39: JP-PROD. | AH39: JP-WIPDP | AI39: JP-WIPWC | AJ39: Flock_4
E40: 0 | K40: 0 | Q40: 0 | W40: 0 | Z40: FRR00074 | AC40: 1.2825 | AD40: 0 | AE40: DAT010 | AF40: 1141000022 | AG40: JP-PROD. | AH40: JP-WIPDP | AI40: JP-WIPWC | AJ40: Flock_4
E41: 0 | K41: 0 | Q41: 0 | W41: 0 | Z41: FRR00066 | AC41: 1.2825 | AD41: 0 | AE41: DAT010 | AF41: 1141000022 | AG41: JP-PROD. | AH41: JP-WIPDP | AI41: JP-WIPWC | AJ41: Flock_4
E42: 0 | K42: 0 | Q42: 0 | W42: 0 | Z42: FRR00065 | AC42: 1.3625 | AD42: 0 | AE42: DAT010 | AF42: 1141000022 | AG42: JP-PROD. | AH42: JP-WIPDP | AI42: JP-WIPWC | AJ42: Flock_4
E43: 0 | K43: 0 | Q43: 0 | W43: 0 | Z43: FRR00035 | AC43: 1.4325 | AD43: 0 | AE43: DAT010 | AF43: 1141000022 | AG43: JP-PROD. | AH43: JP-WIPDP | AI43: JP-WIPWC | AJ43: Flock_4
E44: 0 | K44: 0 | Q44: 0 | W44: 0 | Z44: FRR00034 | AC44: 1.4325 | AD44: 0 | AE44: DAT010 | AF44: 1141000022 | AG44: JP-PROD. | AH44: JP-WIPDP | AI44: JP-WIPWC | AJ44: Flock_4
E45: 0 | K45: 0 | Q45: 0 | W45: 0 | Z45: FRR00053 | AC45: 1.4125 | AD45: 0 | AE45: DAT010 | AF45: 1141000022 | AG45: JP-PROD. | AH45: JP-WIPDP | AI45: JP-WIPWC | AJ45: Flock_4
E46: 0 | K46: 0 | Q46: 0 | W46: 0 | Z46: FRR00054 | AC46: 1.4125 | AD46: 0 | AE46: DAT010 | AF46: 1141000022 | AG46: JP-PROD. | AH46: JP-WIPDP | AI46: JP-WIPWC | AJ46: Flock_4
E47: 0 | K47: 0 | Q47: 0 | W47: 0 | Z47: FRR00068 | AC47: 1.3125 | AD47: 0 | AE47: DAT010 | AF47: 1141000022 | AG47: JP-PROD. | AH47: JP-WIPDP | AI47: JP-WIPWC | AJ47: Flock_4
E48: 0 | K48: 0 | Q48: 0 | W48: 0 | Z48: FRR00039 | AC48: 1.8225 | AD48: 0 | AE48: DAT010 | AF48: 1141000022 | AG48: JP-PROD. | AH48: JP-WIPDP | AI48: JP-WIPWC | AJ48: Flock_4
E49: 0 | K49: 0 | Q49: 0 | W49: 0 | Z49: FRR00081 | AC49: 1.3625 | AD49: 0 | AE49: DAT010 | AF49: 1141000022 | AG49: JP-PROD. | AH49: JP-WIPDP | AI49: JP-WIPWC | AJ49: Flock_4
E50: 0 | K50: 0 | Q50: 0 | W50: 0 | Z50: FRR00027 | AC50: 1.8325 | AD50: 0 | AE50: DAT010 | AF50: 1141000022 | AG50: JP-PROD. | AH50: JP-WIPDP | AI50: JP-WIPWC | AJ50: Flock_4
E51: 0 | K51: 0 | Q51: 0 | W51: 0 | Z51: FRR00032 | AC51: 1.4425 | AD51: 0 | AE51: DAT010 | AF51: 1141000022 | AG51: JP-PROD. | AH51: JP-WIPDP | AI51: JP-WIPWC | AJ51: Flock_4
E52: 0 | K52: 0 | Q52: 0 | W52: 0 | Z52: FRR00023 | AC52: 1.4325 | AD52: 0 | AE52: DAT010 | AF52: 1141000022 | AG52: JP-PROD. | AH52: JP-WIPDP | AI52: JP-WIPWC | AJ52: Flock_4
E53: 0 | K53: 0 | Q53: 0 | W53: 0 | Z53: FRR00051 | AC53: 1.8225 | AD53: 0 | AE53: DAT010 | AF53: 1141000022 | AG53: JP-PROD. | AH53: JP-WIPDP | AI53: JP-WIPWC | AJ53: Flock_4
E54: =D54-(C54*$C$12+B54*$B$12+A54*$A$12) -> 0 | F54: =E54/(A54+B54+C54) ->  | K54: 0 | Q54: 0 | W54: 0 | Z54: FRR00019 | AC54: 1.3425 | AD54: 0 | AE54: DAT010 | AF54: 1141000022 | AG54: JP-PROD. | AH54: JP-WIPDP | AI54: JP-WIPWC | AJ54: Flock_4
E55: =D55-(C55*$C$12+B55*$B$12+A55*$A$12) -> 0 | F55: =E55/(A55+B55+C55) ->  | K55: 0 | Q55: 0 | W55: 0 | Z55: FRR00020 | AC55: 1.3425 | AD55: 0 | AE55: DAT010 | AF55: 1141000022 | AG55: JP-PROD. | AH55: JP-WIPDP | AI55: JP-WIPWC | AJ55: Flock_4
E56: 0 | K56: 0 | Q56: 0 | W56: 0 | Z56: FRR00064 | AC56: 1.3625 | AD56: 0 | AE56: DAT010 | AF56: 1141000022 | AG56: JP-PROD. | AH56: JP-WIPDP | AI56: JP-WIPWC | AJ56: Flock_4
E57: 0 | K57: 0 | Q57: 0 | W57: 0 | Z57: FRR00026 | AC57: 1.8225 | AD57: 0 | AE57: DAT010 | AF57: 1141000022 | AG57: JP-PROD. | AH57: JP-WIPDP | AI57: JP-WIPWC | AJ57: Flock_4
E58: 0 | K58: 0 | Q58: 0 | W58: 0 | Z58: FRR00018 | AC58: 1.3525 | AD58: 0 | AE58: DAT010 | AF58: 1141000022 | AG58: JP-PROD. | AH58: JP-WIPDP | AI58: JP-WIPWC | AJ58: Flock_4
E59: 0 | K59: 0 | Q59: 0 | W59: 0
E60: 0 | K60: 0 | Q60: 0 | W60: 0
E61: 0 | K61: 0 | Q61: 0 | W61: 0
E62: 0 | K62: 0 | Q62: 0 | W62: 0
E63: 0 | K63: 0 | Q63: 0 | W63: 0
E64: 0 | K64: 0 | Q64: 0 | W64: 0
E65: 0 | K65: 0 | Q65: 0 | W65: 0
E66: 0 | K66: 0 | Q66: 0 | W66: 0
E67: 0 | K67: 0 | Q67: 0 | W67: 0
E68: 0 | K68: 0 | Q68: 0 | W68: 0
E69: 0 | K69: 0 | Q69: 0 | W69: 0
E70: 0 | K70: 0 | Q70: 0 | W70: 0
E71: 0 | K71: 0 | Q71: 0 | W71: 0
E72: =D72-(C72*0.9+B72*1.34+A72*1.5) -> 0 | K72: =J72-(I72*0.9+H72*1.34+G72*1.5) -> 0 | Q72: =P72-(O72*0.9+N72*1.34+M72*1.5) -> 0 | W72: =V72-(U72*0.9+T72*1.34+S72*1.5) -> 0
A73: =SUM(A13:A72) -> 37 | B73: =SUM(B13:B72) -> 30 | C73: 13 | D73: =SUM(D13:D72)-((A73*1.5)+(B73*1.34)+(C73*0.9)) -> 992.6 | E73: =SUM(E13:E72) -> 992.6 | F73: =E73/(A73+B73+C73) -> 12.4075 | G73: =SUM(G13:G72) -> 0 | H73: =SUM(H13:H72) -> 0 | I73: =SUM(I13:I72) -> 0 | J73: =SUM(J13:J72)-((G73*1.5)+(H73*1.34)+(I73*0.9)) -> 0 | K73: =SUM(K13:K72) -> 0 | L73: =K73/(G73+H73+I73) ->  | M73: =SUM(M13:M72) -> 0 | N73: =SUM(N13:N72) -> 0 | O73: =SUM(O13:O72) -> 0 | P73: =SUM(P13:P72)-((M73*1.5)+(N73*1.34)+(O73*0.9)) -> 0 | Q73: =SUM(Q13:Q72) -> 0 | R73: =Q73/(M73+N73+O73) ->  | S73: =SUM(S13:S72) -> 0 | T73: =SUM(T13:T72) -> 0 | U73: =SUM(U13:U72) -> 0 | V73: =SUM(V13:V72)-((S73*1.5)+(T73*1.34)+(U73*0.9)) -> 0 | W73: =SUM(W13:W72) -> 0
A74: مطاعم 1300 | E74: FRR00015 | G74: مطاعم 1400 | K74: FRR00016 | M74: مطاعم 1500 | Q74: FRR00017 | S74: جامبو | W74: FRR0008
A75: 1.5 | B75: 1.34 | C75: 0.9 | D75: الوزن | E75: الصافي | G75: 1.5 | H75: 1.34 | I75: 0.9 | J75: الوزن | K75: الصافي | M75: 1.5 | N75: 1.34 | O75: 0.9 | P75: الوزن | Q75: الصافي | S75: 1.5 | T75: 1.34 | U75: 0.9 | V75: الوزن | W75: الصافي
E76: =D76-(C76*0.9+B76*1.34+A76*1.5) -> 0 | F76: =E76/(A76+B76+C76) ->  | K76: =J76-(I76*0.9+H76*1.34+G76*1.5) -> 0 | L76: =K76/(G76+H76+I76) ->  | Q76: =P76-(O76*0.9+N76*1.34+M76*1.5) -> 0 | W76: =V76-(U76*0.9+T76*1.34+S76*1.5) -> 0
E77: =D77-(C77*0.9+B77*1.34+A77*1.5) -> 0 | K77: 0 | Q77: 0 | W77: 0
E78: 0 | K78: 0 | Q78: 0 | W78: 0 | X78: =W78/(S78+T78+U78) -> 
E79: 0 | K79: 0 | Q79: 0 | W79: 0
E80: 0 | K80: 0 | Q80: 0 | W80: 0
E81: 0 | K81: 0 | Q81: 0 | W81: 0
E82: 0 | K82: 0 | Q82: 0 | W82: 0
E83: 0 | K83: 0 | Q83: 0 | W83: 0
E84: 0 | K84: 0 | Q84: 0 | W84: 0
E85: 0 | K85: 0 | Q85: 0 | W85: 0
E86: 0 | K86: 0 | Q86: 0 | W86: 0
E87: 0 | K87: 0 | Q87: 0 | W87: 0
E88: 0 | K88: 0 | Q88: 0 | W88: 0
E89: 0 | K89: 0 | Q89: 0 | W89: 0
E90: 0 | K90: 0 | Q90: 0 | W90: 0
E91: 0 | K91: 0 | Q91: 0 | W91: 0
E92: 0 | K92: 0 | Q92: 0 | W92: 0
E93: 0 | K93: 0 | Q93: 0 | W93: 0
E94: 0 | K94: 0 | Q94: 0 | W94: 0
E95: 0 | K95: 0 | Q95: 0 | W95: 0
E96: 0 | K96: 0 | Q96: 0 | W96: 0
E97: 0 | K97: 0 | Q97: 0 | W97: 0
E98: 0 | K98: 0 | Q98: 0 | W98: 0
E99: 0 | K99: 0 | Q99: 0 | W99: 0
E100: 0 | K100: 0 | Q100: 0 | W100: 0
E101: 0 | K101: 0 | Q101: 0 | W101: 0
E102: 0 | K102: 0 | Q102: 0 | W102: 0
E103: 0 | K103: 0 | Q103: 0 | W103: 0
E104: 0 | K104: 0 | Q104: 0 | W104: 0
E105: 0 | K105: 0 | Q105: 0 | W105: 0
E106: 0 | K106: 0 | Q106: 0 | W106: 0
E107: 0 | K107: 0 | Q107: 0 | W107: 0
E108: 0 | K108: 0 | Q108: 0 | W108: 0
E109: 0 | K109: 0 | Q109: 0 | W109: 0
E110: 0 | K110: 0 | Q110: 0 | W110: 0
E111: 0 | K111: 0 | Q111: 0 | W111: 0
E112: 0 | K112: 0 | Q112: 0 | W112: 0
E113: 0 | K113: 0 | Q113: 0 | W113: 0
E114: 0 | K114: 0 | Q114: 0 | W114: 0
E115: 0 | K115: 0 | Q115: 0 | W115: 0
E116: 0 | K116: 0 | Q116: 0 | W116: 0
E117: 0 | K117: 0 | Q117: 0 | W117: 0
E118: 0 | K118: 0 | Q118: 0 | W118: 0
E119: 0 | K119: 0 | Q119: 0 | W119: 0
E120: 0 | K120: 0 | Q120: 0 | W120: 0
E121: 0 | K121: 0 | Q121: 0 | W121: 0
E122: 0 | K122: 0 | Q122: 0 | W122: 0
E123: 0 | K123: 0 | Q123: 0 | W123: 0
E124: 0 | K124: 0 | Q124: 0 | W124: 0
E125: 0 | K125: 0 | Q125: 0 | W125: 0
E126: 0 | K126: 0 | Q126: 0 | W126: 0
E127: 0 | K127: 0 | Q127: 0 | W127: 0
E128: 0 | K128: 0 | Q128: 0 | W128: 0
E129: 0 | K129: 0 | Q129: 0 | W129: 0
E130: 0 | K130: 0 | Q130: 0 | W130: 0
E131: 0 | K131: 0 | Q131: 0 | R131: =Q131/(M131+N131+O131) ->  | W131: 0
E132: 0 | K132: 0 | Q132: 0 | W132: 0
E133: 0 | K133: 0 | Q133: 0 | W133: 0
E134: 0 | K134: 0 | Q134: 0 | W134: 0
E135: 0 | K135: 0 | Q135: 0 | W135: 0
A136: =SUM(A76:A135) -> 0 | B136: =SUM(B76:B135) -> 0 | C136: 0 | D136: =SUM(D76:D135)-((A136*1.5)+(B136*1.34)+(C136*0.9)) -> 0 | E136: =SUM(E76:E135) -> 0 | F136: =E136/(A136+B136+C136) ->  | G136: =SUM(G76:G135) -> 0 | H136: =SUM(H76:H135) -> 0 | I136: =SUM(I76:I135) -> 0 | J136: =SUM(J76:J135)-((G136*1.5)+(H136*1.34)+(I136*0.9)) -> 0 | K136: =SUM(K76:K135) -> 0 | L136: =K136/(G136+H136+I136) ->  | M136: =SUM(M76:M135) -> 0 | N136: =SUM(N76:N135) -> 0 | O136: =SUM(O76:O135) -> 0 | P136: =SUM(P76:P135)-((M136*1.5)+(N136*1.34)+(O136*0.9)) -> 0 | Q136: =SUM(Q76:Q135) -> 0 | S136: =SUM(S76:S135) -> 0 | T136: =SUM(T76:T135) -> 0 | U136: =SUM(U76:U135) -> 0 | V136: =SUM(V76:V135)-((S136*1.5)+(T136*1.34)+(U136*0.9)) -> 0 | W136: =SUM(W76:W135) -> 0
A137: فروج كيس | E137: FRR00043 | G137: دجاج صحن | K137: FRR0006 | M137: دجاج كبير حلل | Q137: FRR00011 | S137: دجاج الاردنية | W137: FRR00078
A138: 1.5 | B138: 1.34 | C138: 0.9 | D138: الوزن | E138: الصافي | G138: 1.5 | H138: 1.34 | I138: 0.9 | J138: الوزن | K138: الصافي | M138: 1.5 | N138: 1.34 | O138: 0.9 | P138: الوزن | Q138: الصافي | S138: 1.5 | T138: 1.34 | U138: 0.9 | V138: الوزن | W138: الصافي
E139: =D139-(C139*0.9+B139*1.34+A139*1.5) -> 0 | K139: =J139-(I139*0.9+H139*1.34+G139*1.5) -> 0 | Q139: =P139-(O139*0.9+N139*1.34+M139*1.5) -> 0 | W139: =V139-(U139*0.9+T139*1.34+S139*1.5) -> 0
E140: 0 | K140: 0 | Q140: 0 | W140: 0
E141: 0 | K141: 0 | Q141: 0 | W141: 0
E142: 0 | K142: 0 | Q142: 0 | W142: 0 | X142: =W142/(S142+T142+U142) -> 
E143: 0 | K143: 0 | Q143: 0 | W143: 0
E144: 0 | K144: 0 | Q144: 0 | W144: 0
E145: 0 | K145: 0 | Q145: 0 | W145: 0
E146: 0 | K146: 0 | Q146: 0 | W146: 0
E147: 0 | K147: 0 | Q147: 0 | W147: 0
E148: 0 | K148: 0 | Q148: 0 | W148: 0
E149: 0 | K149: 0 | Q149: 0 | W149: 0
E150: 0 | K150: 0 | Q150: 0 | W150: 0
E151: 0 | K151: 0 | Q151: 0 | W151: 0
E152: 0 | K152: 0 | Q152: 0 | W152: 0
E153: 0 | K153: 0 | Q153: 0 | W153: 0
E154: 0 | K154: 0 | Q154: 0 | W154: 0
E155: 0 | K155: 0 | Q155: 0 | W155: 0
E156: 0 | K156: 0 | Q156: 0 | W156: 0
E157: 0 | K157: 0 | Q157: 0 | W157: 0
E158: 0 | K158: 0 | Q158: 0 | W158: 0
A159: =SUM(A139:A158) -> 0 | B159: =SUM(B139:B158) -> 0 | C159: =SUM(C139:C158) -> 0 | D159: =SUM(D139:D158)-((A159*1.5)+(B159*1.34)+(C159*0.9)) -> 0 | E159: =SUM(E139:E158) -> 0 | G159: =SUM(G139:G158) -> 0 | H159: =SUM(H139:H158) -> 0 | I159: =SUM(I139:I158) -> 0 | J159: =SUM(J139:J158)-((G159*1.5)+(H159*1.34)+(I159*0.9)) -> 0 | K159: =SUM(K139:K158) -> 0 | M159: =SUM(M139:M158) -> 0 | N159: =SUM(N139:N158) -> 0 | O159: =SUM(O139:O158) -> 0 | P159: =SUM(P139:P158)-((M159*1.5)+(N159*1.34)+(O159*0.9)) -> 0 | Q159: =SUM(Q139:Q158) -> 0 | S159: =SUM(S139:S158) -> 0 | T159: =SUM(T139:T158) -> 0 | U159: =SUM(U139:U158) -> 0 | V159: =SUM(V139:V158)-((S159*1.5)+(T159*1.34)+(U159*0.9)) -> 0 | W159: =SUM(W139:W158) -> 0
A160: دجاج حلل مع خملة | E160: FRR00010 | G160: دجاج وادي القمح | K160: FRR00060 | M160: دجاج م.صغير | Q160: FRR00063 | S160: كبدة | W160: FRR00046
A161: 1.5 | B161: 1.34 | C161: 0.9 | D161: الوزن | E161: الصافي | G161: 1.5 | H161: 1.34 | I161: 0.9 | J161: الوزن | K161: الصافي | M161: 1.5 | N161: 1.34 | O161: 0.9 | P161: الوزن | Q161: الصافي | S161: 1.5 | T161: 1.34 | U161: 0.9 | V161: الوزن | W161: الصافي
E162: 0 | K162: 0 | Q162: =P162-(O162*0.9+N162*1.34+M162*1.5) -> 0 | W162: 0
E163: 0 | K163: 0 | Q163: 0 | W163: 0
E164: 0 | K164: 0 | Q164: 0 | W164: 0
E165: 0 | K165: 0 | Q165: 0 | W165: 0
E166: 0 | K166: 0 | Q166: 0 | W166: 0
E167: 0 | K167: 0 | Q167: 0 | W167: 0
E168: 0 | K168: 0 | Q168: 0 | W168: 0
E169: 0 | K169: 0 | Q169: 0 | W169: 0
E170: 0 | K170: 0 | Q170: 0 | W170: 0
E171: 0 | K171: 0 | Q171: 0 | W171: 0
E172: 0 | K172: 0 | Q172: 0 | W172: 0
E173: 0 | K173: 0 | Q173: 0 | W173: 0
E174: 0 | K174: 0 | Q174: 0 | W174: 0
E175: 0 | K175: 0 | Q175: 0 | W175: 0
E176: 0 | K176: 0 | Q176: 0 | W176: 0
E177: 0 | K177: 0 | Q177: 0 | R177: =Q177/(M177+N177+O177) ->  | W177: 0
E178: 0 | K178: 0 | Q178: 0 | W178: 0
E179: 0 | K179: 0 | Q179: 0 | W179: 0
E180: 0 | F180: =E180/(A180+B180+C180) ->  | K180: 0 | L180: =K180/(G180+H180+I180) ->  | Q180: 0 | W180: 0
E181: 0 | K181: =J181-(I181*0.9+H181*1.34+G181*1.5) -> 0 | Q181: 0 | W181: =V181-(U181*0.9+T181*1.34+S181*1.5) -> 0
A182: =SUM(A162:A181) -> 0 | B182: =SUM(B162:B181) -> 0 | C182: =SUM(C162:C181) -> 0 | D182: =SUM(D162:D181)-((A182*1.5)+(B182*1.34)+(C182*0.9)) -> 0 | E182: =SUM(E162:E181) -> 0 | G182: =SUM(G162:G181) -> 0 | H182: =SUM(H162:H181) -> 0 | I182: =SUM(I162:I181) -> 0 | J182: =SUM(J162:J181)-((G182*1.5)+(H182*1.34)+(I182*0.9)) -> 0 | K182: =SUM(K162:K181) -> 0 | M182: =SUM(M162:M181) -> 0 | N182: =SUM(N162:N181) -> 0 | O182: =SUM(O162:O181) -> 0 | P182: =SUM(P162:P181)-((M182*1.5)+(N182*1.34)+(O182*0.9)) -> 0 | Q182: =SUM(Q162:Q181) -> 0 | S182: =SUM(S162:S181) -> 0 | T182: =SUM(T162:T181) -> 0 | U182: =SUM(U162:U181) -> 0 | V182: =SUM(V162:V181)-((S182*1.5)+(T182*1.34)+(U182*0.9)) -> 0 | W182: =SUM(W162:W181) -> 0
A183: كبدة بدون قلوب | E183: FRR00048 | G183: قلوب | K183: FRR00056 | M183: قوانص | Q183: FRR00049 | S183: فخذ | W183: FRR00029
A184: 1.5 | B184: 1.34 | C184: 0.9 | D184: الوزن | E184: الصافي | G184: 1.5 | H184: 1.34 | I184: 0.9 | J184: الوزن | K184: الصافي | M184: 1.5 | N184: 1.34 | O184: 0.9 | P184: الوزن | Q184: الصافي | S184: 1.5 | T184: 1.34 | U184: 0.9 | V184: الوزن | W184: الصافي
E185: =D185-(C185*0.9+B185*1.34+A185*1.5) -> 0 | K185: 0 | Q185: =P185-(O185*0.9+N185*1.34+M185*1.5) -> 0 | W185: 0
E186: 0 | K186: 0 | Q186: 0 | W186: 0
E187: 0 | K187: 0 | Q187: 0 | W187: 0
E188: 0 | K188: 0 | Q188: 0 | W188: 0
E189: 0 | K189: 0 | Q189: 0 | W189: 0
E190: 0 | K190: 0 | Q190: 0 | W190: 0
E191: 0 | K191: 0 | Q191: 0 | W191: 0
E192: 0 | K192: 0 | Q192: 0 | W192: 0
E193: 0 | K193: 0 | Q193: 0 | W193: 0
E194: 0 | K194: 0 | Q194: 0 | W194: 0
E195: 0 | K195: 0 | Q195: 0 | W195: 0
E196: 0 | K196: 0 | Q196: 0 | W196: 0
E197: 0 | K197: 0 | Q197: 0 | W197: 0
E198: 0 | K198: 0 | Q198: 0 | W198: 0
E199: 0 | K199: 0 | Q199: 0 | W199: 0
E200: 0 | K200: 0 | Q200: 0 | W200: 0
E201: 0 | K201: 0 | Q201: 0 | W201: 0
E202: 0 | K202: 0 | Q202: 0 | W202: 0
E203: 0 | K203: 0 | Q203: 0 | W203: 0
... 123 more rows

Sheet 1
B3: فراغ | F3: ثابته | L3: فراغ | M3: فراغ | O3: فراغ
A4: ITEM NUMBER | B4: ITEM DESC | C4: QUANTITY | D4: UNIT PRICE | E4: TOTAL | F4: WHSE | G4: ACOUNT CODE | H4: BUSINESSC UNIT | I4: DEPARTMENT | J4: WORK CENTER | K4: FLOCK | L4: عدد الطبالي | M4: وزن الطبيلة | N4: عدد 0.9 | P4: عدد 1.34
A5: FRR00002 | C5: =main!E13 -> 450.7 | D5: 1.2825 | E5: =C5*D5 -> 578.02275 | F5: DAT010 | G5: 1141000022 | H5: JP-PROD. | I5: JP-WIPDP | J5: JP-WIPWC | K5: Flock_4 | N5: =main!C13 -> 5 | P5: =main!B13+main!A13 -> 32
A6: FRR00002 | C6: =main!E14 -> 541.9 | D6: 1.2825 | E6: =C6*D6 -> 694.98675 | F6: DAT010 | G6: 1141000022 | H6: JP-PROD. | I6: JP-WIPDP | J6: JP-WIPWC | K6: Flock_4 | N6: =main!C14 -> 8 | P6: =main!B14+main!A14 -> 35
A7: FRR00007 | D7: 1.2825 | E7: =C7*D7 -> 0 | F7: DAT010 | G7: 1141000022 | H7: JP-PROD. | I7: JP-WIPDP | J7: JP-WIPWC | K7: Flock_4
A8: FRR00013 | D8: 1.2825 | E8: 0 | F8: DAT010 | G8: 1141000022 | H8: JP-PROD. | I8: JP-WIPDP | J8: JP-WIPWC | K8: Flock_4
A9: FRR00014 | D9: 1.2825 | E9: 0 | F9: DAT010 | G9: 1141000022 | H9: JP-PROD. | I9: JP-WIPDP | J9: JP-WIPWC | K9: Flock_4
A10: FRR00015 | D10: 1.2825 | E10: 0 | F10: DAT010 | G10: 1141000022 | H10: JP-PROD. | I10: JP-WIPDP | J10: JP-WIPWC | K10: Flock_4
A11: FRR00016 | D11: 1.2825 | E11: 0 | F11: DAT010 | G11: 1141000022 | H11: JP-PROD. | I11: JP-WIPDP | J11: JP-WIPWC | K11: Flock_4
A12: FRR00017 | D12: 1.2825 | E12: 0 | F12: DAT010 | G12: 1141000022 | H12: JP-PROD. | I12: JP-WIPDP | J12: JP-WIPWC | K12: Flock_4
A13: FRR00008 | D13: 1.2825 | E13: 0 | F13: DAT010 | G13: 1141000022 | H13: JP-PROD. | I13: JP-WIPDP | J13: JP-WIPWC | K13: Flock_4
A14: FRR00043 | D14: 1.2825 | E14: 0 | F14: DAT010 | G14: 1141000022 | H14: JP-PROD. | I14: JP-WIPDP | J14: JP-WIPWC | K14: Flock_4
A15: FRR00006 | D15: 1.2925 | E15: 0 | F15: DAT010 | G15: 1141000022 | H15: JP-PROD. | I15: JP-WIPDP | J15: JP-WIPWC | K15: Flock_4
A16: FRR00044 | D16: 1.2925 | E16: 0 | F16: DAT010 | G16: 1141000022 | H16: JP-PROD. | I16: JP-WIPDP | J16: JP-WIPWC | K16: Flock_4
A17: FRR00011 | D17: 1.2825 | E17: 0 | F17: DAT010 | G17: 1141000022 | H17: JP-PROD. | I17: JP-WIPDP | J17: JP-WIPWC | K17: Flock_4
A18: FRR00078 | D18: 1.2825 | E18: 0 | F18: DAT010 | G18: 1141000022 | H18: JP-PROD. | I18: JP-WIPDP | J18: JP-WIPWC | K18: Flock_4
A19: FRR00010 | D19: 1.3425 | E19: 0 | F19: DAT010 | G19: 1141000022 | H19: JP-PROD. | I19: JP-WIPDP | J19: JP-WIPWC | K19: Flock_4
A20: FRR00060 | D20: 1.2825 | E20: 0 | F20: DAT010 | G20: 1141000022 | H20: JP-PROD. | I20: JP-WIPDP | J20: JP-WIPWC | K20: Flock_4
A21: FRR00063 | D21: 1.2825 | E21: 0 | F21: DAT010 | G21: 1141000022 | H21: JP-PROD. | I21: JP-WIPDP | J21: JP-WIPWC | K21: Flock_4
A22: FRR00012 | D22: 1.2825 | E22: 0 | F22: DAT010 | G22: 1141000022 | H22: JP-PROD. | I22: JP-WIPDP | J22: JP-WIPWC | K22: Flock_4
A23: FRR00046 | D23: 1.2925 | E23: 0 | F23: DAT010 | G23: 1141000022 | H23: JP-PROD. | I23: JP-WIPDP | J23: JP-WIPWC | K23: Flock_4
A24: FRR00048 | D24: 1.3025 | E24: 0 | F24: DAT010 | G24: 1141000022 | H24: JP-PROD. | I24: JP-WIPDP | J24: JP-WIPWC | K24: Flock_4
A25: FRR00067 | D25: 1.4125 | E25: 0 | F25: DAT010 | G25: 1141000022 | H25: JP-PROD. | I25: JP-WIPDP | J25: JP-WIPWC | K25: Flock_4
A26: FRR00056 | D26: 1.2925 | E26: 0 | F26: DAT010 | G26: 1141000022 | H26: JP-PROD. | I26: JP-WIPDP | J26: JP-WIPWC | K26: Flock_4
A27: FRR00049 | D27: 1.2925 | E27: 0 | F27: DAT010 | G27: 1141000022 | H27: JP-PROD. | I27: JP-WIPDP | J27: JP-WIPWC | K27: Flock_4
A28: FRR00029 | D28: 1.4325 | E28: 0 | F28: DAT010 | G28: 1141000022 | H28: JP-PROD. | I28: JP-WIPDP | J28: JP-WIPWC | K28: Flock_4
A29: FRR00022 | D29: 1.4325 | E29: 0 | F29: DAT010 | G29: 1141000022 | H29: JP-PROD. | I29: JP-WIPDP | J29: JP-WIPWC | K29: Flock_4
A30: FRR00041 | D30: 1.3625 | E30: 0 | F30: DAT010 | G30: 1141000022 | H30: JP-PROD. | I30: JP-WIPDP | J30: JP-WIPWC | K30: Flock_4
A31: FRR00024 | D31: 1.4325 | E31: 0 | F31: DAT010 | G31: 1141000022 | H31: JP-PROD. | I31: JP-WIPDP | J31: JP-WIPWC | K31: Flock_4
A32: FRR00030 | D32: 1.4325 | E32: 0 | F32: DAT010 | G32: 1141000022 | H32: JP-PROD. | I32: JP-WIPDP | J32: JP-WIPWC | K32: Flock_4
A33: FRR00038 | D33: 1.8225 | E33: 0 | F33: DAT010 | G33: 1141000022 | H33: JP-PROD. | I33: JP-WIPDP | J33: JP-WIPWC | K33: Flock_4
A34: FRR00074 | D34: 1.2825 | E34: 0 | F34: DAT010 | G34: 1141000022 | H34: JP-PROD. | I34: JP-WIPDP | J34: JP-WIPWC | K34: Flock_4
A35: FRR00066 | D35: 1.2825 | E35: 0 | F35: DAT010 | G35: 1141000022 | H35: JP-PROD. | I35: JP-WIPDP | J35: JP-WIPWC | K35: Flock_4
A36: FRR00065 | D36: 1.3625 | E36: 0 | F36: DAT010 | G36: 1141000022 | H36: JP-PROD. | I36: JP-WIPDP | J36: JP-WIPWC | K36: Flock_4
A37: FRR00035 | D37: 1.4325 | E37: 0 | F37: DAT010 | G37: 1141000022 | H37: JP-PROD. | I37: JP-WIPDP | J37: JP-WIPWC | K37: Flock_4
A38: FRR00034 | D38: 1.4325 | E38: 0 | F38: DAT010 | G38: 1141000022 | H38: JP-PROD. | I38: JP-WIPDP | J38: JP-WIPWC | K38: Flock_4
A39: FRR00053 | D39: 1.4125 | E39: 0 | F39: DAT010 | G39: 1141000022 | H39: JP-PROD. | I39: JP-WIPDP | J39: JP-WIPWC | K39: Flock_4
A40: FRR00054 | D40: 1.4125 | E40: 0 | F40: DAT010 | G40: 1141000022 | H40: JP-PROD. | I40: JP-WIPDP | J40: JP-WIPWC | K40: Flock_4
A41: FRR00068 | D41: 1.3125 | E41: 0 | F41: DAT010 | G41: 1141000022 | H41: JP-PROD. | I41: JP-WIPDP | J41: JP-WIPWC | K41: Flock_4
A42: FRR00039 | D42: 1.8225 | E42: 0 | F42: DAT010 | G42: 1141000022 | H42: JP-PROD. | I42: JP-WIPDP | J42: JP-WIPWC | K42: Flock_4
A43: FRR00081 | D43: 1.3625 | E43: 0 | F43: DAT010 | G43: 1141000022 | H43: JP-PROD. | I43: JP-WIPDP | J43: JP-WIPWC | K43: Flock_4
A44: FRR00027 | D44: 1.8325 | E44: 0 | F44: DAT010 | G44: 1141000022 | H44: JP-PROD. | I44: JP-WIPDP | J44: JP-WIPWC | K44: Flock_4
A45: FRR00032 | D45: 1.4425 | E45: 0 | F45: DAT010 | G45: 1141000022 | H45: JP-PROD. | I45: JP-WIPDP | J45: JP-WIPWC | K45: Flock_4
A46: FRR00023 | D46: 1.4325 | E46: 0 | F46: DAT010 | G46: 1141000022 | H46: JP-PROD. | I46: JP-WIPDP | J46: JP-WIPWC | K46: Flock_4
A47: FRR00051 | D47: 1.8225 | E47: 0 | F47: DAT010 | G47: 1141000022 | H47: JP-PROD. | I47: JP-WIPDP | J47: JP-WIPWC | K47: Flock_4
A48: FRR00019 | D48: 1.3425 | E48: 0 | F48: DAT010 | G48: 1141000022 | H48: JP-PROD. | I48: JP-WIPDP | J48: JP-WIPWC | K48: Flock_4
A49: FRR00020 | D49: 1.3425 | E49: 0 | F49: DAT010 | G49: 1141000022 | H49: JP-PROD. | I49: JP-WIPDP | J49: JP-WIPWC | K49: Flock_4
A50: FRR00064 | D50: 1.3625 | E50: 0 | F50: DAT010 | G50: 1141000022 | H50: JP-PROD. | I50: JP-WIPDP | J50: JP-WIPWC | K50: Flock_4
A51: FRR00026 | D51: 1.8225 | E51: 0 | F51: DAT010 | G51: 1141000022 | H51: JP-PROD. | I51: JP-WIPDP | J51: JP-WIPWC | K51: Flock_4
A52: FRR00018 | D52: 1.3525 | E52: 0 | F52: DAT010 | G52: 1141000022 | H52: JP-PROD. | I52: JP-WIPDP | J52: JP-WIPWC | K52: Flock_4
B54: كميات | C54: =SUM(C5:C52) -> 992.6 | E54: =SUM(E5:E52) -> 1273.0095
